fUST/lending_fUST_20240813
["ID","MTS","AMOUNT","RATE_DAILY","PERIOD"]
[334768246,1723539032844,-250.0,9.493e-05,2]
[334768248,1723539032854,-250.0,9.519e-05,2]
[334768250,1723539032864,-250.0,9.544e-05,2]
[334768252,1723539032873,-250.0,9.57e-05,2]
[334768254,1723539032882,-250.0,9.596e-05,2]
[334768256,1723539032892,-250.0,9.621e-05,2]
[334768258,1723539032901,-250.0,9.647e-05,2]
[334768260,1723539032910,-250.0,9.673e-05,2]
[334768262,1723539032919,-250.0,9.698e-05,2]
[334768264,1723539032929,-250.0,9.724e-05,2]
[334768266,1723539032938,-250.0,9.75e-05,2]
[334768267,1723539032947,-250.0,9.775e-05,2]
[334768269,1723539032957,-1367.85068952,9.8e-05,2]
[334768271,1723539032966,-250.0,9.801e-05,2]
[334768273,1723539032975,-250.0,9.827e-05,2]
[334768276,1723539032985,-250.0,9.853e-05,2]
[334768278,1723539032994,-300.0,9.998e-05,2]
[334768280,1723539033003,-238.0,9.998e-05,2]
[334768282,1723539033013,-6.44185794,9.999e-05,2]
[334768284,1723539033023,-846.46724827,9.999e-05,2]
[334768286,1723539033032,-205.42133969,9.999e-05,2]
[334768288,1723539033042,-154.76012181,9.999e-05,2]
[334768290,1723539033051,-209.42836987,9.999e-05,2]
[334768292,1723539033061,-600.74673084,9.999e-05,2]
[334768294,1723539033071,-178.39529262,9.999e-05,2]
[334768296,1723539033080,-989.95922516,9.999e-05,2]
[334768298,1723539033098,-183.31414419,9.999e-05,2]
[334768299,1723539033107,-154.76012181,9.999e-05,2]
[334768301,1723539033116,-200.20957377,9.999e-05,2]
[334768303,1723539033125,-569.2097652,9.999e-05,2]
[334768305,1723539033135,-154.76012181,9.999e-05,2]
[334768307,1723539033145,-306.36992567,9.999e-05,2]
[334768309,1723539033155,-728.34861839,9.999e-05,2]
[334768311,1723539033164,-154.76012181,9.999e-05,2]
[334768312,1723539033174,-249.43858476,9.999e-05,2]
[334768313,1723539033184,-2200.16550108,9.999e-05,2]
[334768315,1723539033193,-404.97965185,9.999e-05,2]
[334768317,1723539033203,-511.06075844,9.999e-05,2]
[334768319,1723539033212,-188.45659018,9.999e-05,2]
[334768321,1723539033221,-201.70451665,9.999e-05,2]
[334768323,1723539033231,-676.49192867,9.999e-05,2]
[334768327,1723539033259,-3113.43690267,9.999e-05,2]
[334768329,1723539033268,-158.63524894,9.999e-05,2]
[334768331,1723539033278,-809.49275165,9.999e-05,2]
[334768333,1723539033287,-543.67907992,9.999e-05,2]
[334768335,1723539033297,-154.76012181,9.999e-05,2]
[334768337,1723539033306,-154.76012181,9.999e-05,2]
[334768339,1723539033316,-154.76012181,9.999e-05,2]
[334768341,1723539033326,-2111.27572321,9.999e-05,2]
[334768343,1723539033338,-196.69322642,9.999e-05,2]
[334768345,1723539033348,-157.00320308,9.999e-05,2]
[334768347,1723539033357,-3606.1291612,9.999e-05,2]
[334768349,1723539033366,-520.25072733,9.999e-05,2]
[334768351,1723539033376,-810.88959894,9.999e-05,2]
[334768353,1723539033386,-1413.50508387,9.999e-05,2]
[334768355,1723539033396,-156.91451497,9.999e-05,2]
[334768357,1723539033405,-309.52024362,9.999e-05,2]
[334768359,1723539033415,-898.03401982,9.999e-05,2]
[334768361,1723539033424,-12558.2436374,9.999e-05,2]
[334768363,1723539033434,-154.76012181,9.999e-05,2]
[334768366,1723539033444,-154.9284136,9.999e-05,2]
[334768368,1723539033454,-442.6873589,9.999e-05,2]
[334768370,1723539033464,-174.72672334,9.999e-05,2]
[334768372,1723539033473,-180.67948358,9.999e-05,2]
[334768373,1723539033482,-165.7378718,9.999e-05,2]
[334768375,1723539033491,-694.90272385,9.999e-05,2]
[334768378,1723539033500,-154.76012181,9.999e-05,2]
[334768380,1723539033510,-154.76012181,9.999e-05,2]
[334768382,1723539033519,-241.08007801,9.999e-05,2]
[334768384,1723539033528,-3612.54647884,9.999e-05,2]
[334768386,1723539033538,-16305.56528498,9.999e-05,2]
[334768388,1723539033549,-601.50902274,9.999e-05,2]
[334768390,1723539033558,-404.1964714,9.999e-05,2]
[334768392,1723539033568,-157.99537743,9.999e-05,2]
[334768394,1723539033577,-210.10628593,9.999e-05,2]
[334768396,1723539033591,-288.10768054,0.0001,2]
[334768398,1723539033606,-154.79102903,0.0001,2]
[334768400,1723539033615,-154.76012181,0.0001,2]
[334768402,1723539033624,-154.76012181,0.0001,2]
[334768404,1723539033635,-413.41235077,0.0001,2]
[334768406,1723539033644,-200.0,0.0001,2]
[334768408,1723539033654,-200.0,0.0001,2]
[334768410,1723539033664,-200.0,0.0001,2]
[334768412,1723539033673,-24900.0,0.00010015,2]
[334768414,1723539033682,-2010.9396659,0.00010206,2]
[334768416,1723539033695,-235.1570113,0.00010959,2]
[334768418,1723539033705,-911.34,0.00010959,2]
[334768420,1723539033715,-1926.84,0.00010959,2]
[334768422,1723539033725,-1605.7,0.00010959,2]
[334768424,1723539033736,-1338.08,0.00010959,2]
[334768426,1723539033747,-1115.07,0.00010959,2]
[334768428,1723539033757,-929.22,0.00010959,2]
[334768430,1723539033767,-774.35,0.00010959,2]
[334768432,1723539033780,-645.3,0.00010959,2]
[334768434,1723539033790,-537.75,0.00010959,2]
[334768436,1723539033800,-448.12,0.00010959,2]
[334768438,1723539033811,-373.43,0.00010959,2]
[334768440,1723539033822,-420.0,0.00010998,2]
[334768442,1723539033835,-400.0,0.0001137,2]
[334768444,1723539033857,-400.0,0.0001137,2]
[334768445,1723539033868,-400.0,0.0001137,2]
[334768447,1723539033878,-587.0,0.00012098,2]
[334768449,1723539033890,-823.0,0.00013307,2]
[334768451,1723539033899,-600.0,0.00013373,2]
[334768453,1723539033909,-600.0,0.00013373,2]
[334768455,1723539033919,-600.0,0.00013373,2]
[334768457,1723539033930,-29687.4172617,0.00013568,2]
[334768613,1723539039020,-154.76012181,0.0001,2]
[334768615,1723539039029,-311.2,0.00010959,2]
[334768617,1723539039039,-216.68490442,0.0001212,2]
[334768619,1723539039048,-32222.20947318,0.00013568,2]
[334768622,1723539039059,-51034.27435266,0.00013568,2]
[334768625,1723539039085,-14954.14686646,0.00013568,2]
[334768627,1723539039094,-70946.46222528,0.00013578,2]
[334768630,1723539039104,-1721.27300485,0.00013598,2]
[334768632,1723539039113,-200.0,0.00013673,2]
[334768634,1723539039122,-200.0,0.00013673,2]
[334768636,1723539039132,-53905.18221649,0.00013678,2]
[334768638,1723539039141,-255796.095909,0.00013678,2]
[334768640,1723539039150,-100705.90380034,0.00013688,2]
[334769049,1723539044019,-259.33,0.00010959,2]
[334769050,1723539044029,-200.0,0.00013673,2]
[334769051,1723539044039,-263.22094024,0.00013688,2]
[334769052,1723539044050,-945.54784356,0.00013688,2]
[334769178,1723539122328,4663.0,0.00025,60]
[334769220,1723540029169,-7322.87121295,9.009e-05,2]
[334769221,1723540029194,-300.0,9.191e-05,2]
[334769222,1723540029217,-509.78305304,9.192e-05,2]
[334769270,1723540231815,-1640.24017386,9.009e-05,2]
[334769272,1723540231825,-116.00527927,9.191e-05,2]
[334769274,1723540231838,-183.99472073,9.191e-05,2]
[334769276,1723540231847,-300.0,9.191e-05,2]
[334769278,1723540231856,-8383.28027927,9.192e-05,2]
[334769279,1723540231868,-16006.93666769,9.192e-05,2]
[334769282,1723540231877,-3606.1291612,9.192e-05,2]
[334769285,1723540231886,-2111.27572321,9.192e-05,2]
[334769287,1723540231895,-158.63524894,9.192e-05,2]
[334769289,1723540231905,-16305.56528498,9.192e-05,2]
[334769293,1723540231914,-2785.9915217,9.192e-05,2]
[334769296,1723540231924,-200.0,9.733e-05,2]
[334769298,1723540231933,-850.36837131,9.999e-05,2]
[334769300,1723540231943,-154.76012181,9.999e-05,2]
[334769302,1723540231952,-210.10628593,9.999e-05,2]
[334769304,1723540231961,-154.76012181,9.999e-05,2]
[334769306,1723540231971,-241.08007801,9.999e-05,2]
[334769308,1723540231980,-404.1964714,9.999e-05,2]
[334769310,1723540231989,-601.50902274,9.999e-05,2]
[334769312,1723540231998,-157.00320308,9.999e-05,2]
[334769313,1723540232008,-209.42836987,9.999e-05,2]
[334769315,1723540232017,-809.49275165,9.999e-05,2]
[334769317,1723540232027,-196.69322642,9.999e-05,2]
[334769318,1723540232037,-188.45659018,9.999e-05,2]
[334769319,1723540232046,-728.34861839,9.999e-05,2]
[334769321,1723540232056,-183.31414419,9.999e-05,2]
[334769323,1723540232065,-154.76012181,9.999e-05,2]
[334769324,1723540232074,-205.42133969,9.999e-05,2]
[334769325,1723540232084,-534.52389159,9.999e-05,2]
[334769326,1723540232094,-543.67907992,9.999e-05,2]
[334769327,1723540232103,-165.7378718,9.999e-05,2]
[334769328,1723540232112,-600.74673084,9.999e-05,2]
[334769329,1723540232121,-810.88959894,9.999e-05,2]
[334769330,1723540232131,-898.03401982,9.999e-05,2]
[334769331,1723540232141,-569.2097652,9.999e-05,2]
[334769332,1723540232151,-636.72640188,9.999e-05,2]
[334769333,1723540232160,-320.08358525,9.999e-05,2]
[334769334,1723540232172,-301.33703286,9.999e-05,2]
[334769335,1723540232181,-154.76012181,9.999e-05,2]
[334769336,1723540232190,-155.28160448,9.999e-05,2]
[334769337,1723540232200,-154.96300286,9.999e-05,2]
[334769338,1723540232211,-250.59023246,9.999e-05,2]
[334769339,1723540232220,-189.9631639,9.999e-05,2]
[334769340,1723540232229,-156.78137498,9.999e-05,2]
[334769341,1723540232239,-1020.88413461,9.999e-05,2]
[334769342,1723540232249,-155.28537056,9.999e-05,2]
[334769343,1723540232259,-665.04001235,9.999e-05,2]
[334769344,1723540232268,-341.17980474,9.999e-05,2]
[334769345,1723540232278,-154.76012181,9.999e-05,2]
[334769346,1723540232287,-520.25072733,9.999e-05,2]
[334769347,1723540232296,-846.46724827,9.999e-05,2]
[334769348,1723540232306,-157.99537743,9.999e-05,2]
[334769349,1723540232315,-154.76012181,9.999e-05,2]
[334769350,1723540232325,-154.76012181,9.999e-05,2]
[334769351,1723540232344,-694.90272385,9.999e-05,2]
[334769352,1723540232353,-154.76012181,9.999e-05,2]
[334769353,1723540232362,-201.70451665,9.999e-05,2]
[334769354,1723540232371,-154.76012181,9.999e-05,2]
[334769355,1723540232381,-288.94537425,9.999e-05,2]
[334769356,1723540232390,-174.72672334,9.999e-05,2]
[334769357,1723540232399,-156.91451497,9.999e-05,2]
[334769358,1723540232408,-154.74467129,9.999e-05,2]
[334769359,1723540232419,-154.76012181,9.999e-05,2]
[334769360,1723540232428,-154.90115752,9.999e-05,2]
[334769361,1723540232438,-180.67948358,9.999e-05,2]
[334769362,1723540232447,-413.41235077,0.0001,2]
[334769363,1723540232456,-288.10768054,0.0001,2]
[334769364,1723540232466,-200.0,0.0001,2]
[334769365,1723540232476,-154.76012181,0.0001,2]
[334769366,1723540232486,-154.74467129,0.0001,2]
[334769367,1723540232496,-420.0,0.0001011,2]
[334769368,1723540232505,-420.0,0.0001011,2]
[334769369,1723540232514,-250.0,0.00010653,2]
[334769370,1723540232523,-250.0,0.00010682,2]
[334769371,1723540232532,-250.0,0.00010711,2]
[334769372,1723540232542,-250.0,0.00010741,2]
[334769373,1723540232552,-250.0,0.0001077,2]
[334769374,1723540232562,-250.0,0.00010799,2]
[334769375,1723540232573,-250.0,0.00010828,2]
[334769376,1723540232593,-250.0,0.00010857,2]
[334769377,1723540232602,-250.0,0.00010887,2]
[334769378,1723540232613,-250.0,0.00010916,2]
[334769379,1723540232624,-250.0,0.00010945,2]
[334769380,1723540232633,-696.58,0.00010959,2]
[334769381,1723540232642,-580.49,0.00010959,2]
[334769382,1723540232653,-483.74,0.00010959,2]
[334769383,1723540232662,-250.0,0.00010974,2]
[334769384,1723540232671,-250.0,0.00011003,2]
[334769385,1723540232681,-250.0,0.00011033,2]
[334769386,1723540232690,-250.0,0.00011062,2]
[334769387,1723540232699,-250.0,0.00011091,2]
[334769388,1723540232709,-400.0,0.00011103,2]
[334769389,1723540232718,-250.0,0.0001112,2]
[334769390,1723540232728,-587.0,0.00011121,2]
[334769391,1723540232739,-250.0,0.00011149,2]
[334769392,1723540232748,-250.0,0.00011179,2]
[334769393,1723540232757,-250.0,0.00011208,2]
[334769394,1723540232767,-400.0,0.0001137,2]
[334769395,1723540232776,-823.0,0.00012233,2]
[334769396,1723540232786,-4712.77664755,0.000129,2]
[334769397,1723540232795,-4712.77664752,0.000129,2]
[334769398,1723540232805,-1000.0,0.00013,4]
[334769399,1723540232814,-600.0,0.00013106,2]
[334769400,1723540232824,-1413.0,0.00013345,2]
[334769401,1723540232837,-600.0,0.00013373,2]
[334769402,1723540232847,-1152.0,0.00013456,2]
[334769403,1723540232857,-150.112236,0.000135,2]
[334769404,1723540232867,-18630.34885522,0.00013557,2]
[334769405,1723540232887,-2795.90603078,0.00013557,2]
[334769406,1723540232896,-374.58352049,0.00013578,2]
[334769462,1723540238262,-200.0,9.733e-05,2]
[334769464,1723540238272,-403.12,0.00010959,2]
[334769466,1723540238282,-400.0,0.00011103,2]
[334769468,1723540238291,-600.0,0.00013106,2]
[334769469,1723540238300,-4981.980201,0.00013578,2]
[334769471,1723540238310,-10713.127443,0.00013578,2]
[334769473,1723540238320,-79094.73250074,0.00013588,2]
[334769476,1723540238332,-9793.26749926,0.00013588,2]
[334769478,1723540238342,-1764.30482996,0.00013598,2]
[334769480,1723540238352,-200.0,0.00013673,2]
[334769482,1723540238362,-200.0,0.00013673,2]
[334769484,1723540238372,-21426.254886,0.00013678,2]
[334769486,1723540238382,-16069.6911645,0.00013688,2]
[334769488,1723540238392,-5356.56372149,0.00013689,2]
[334769490,1723540238402,-26952.59110824,0.00013698,2]
[334769491,1723540238411,-500.0,0.00013698,2]
[334769493,1723540238420,-251.62794152,0.00013698,2]
[334769495,1723540238430,-157.2737572,0.00013698,2]
[334769497,1723540238440,-270.26495792,0.00013698,2]
[334769499,1723540238450,-262.96385452,0.00013698,2]
[334769501,1723540238460,-500.0,0.00013698,2]
[334769503,1723540238469,-500.0,0.00013698,2]
[334769504,1723540238479,-373.54991007,0.00013698,2]
[334769506,1723540238489,-500.0,0.00013698,2]
[334769508,1723540238499,-408.78919663,0.00013698,2]
[334769510,1723540238508,-500.0,0.00013698,2]
[334769512,1723540238518,-500.0,0.00013698,2]
[334769514,1723540238527,-500.0,0.00013698,2]
[334769515,1723540238538,-500.0,0.00013698,2]
[334769517,1723540238550,-500.0,0.00013698,2]
[334769519,1723540238562,-500.0,0.00013698,2]
[334769521,1723540238571,-500.0,0.00013698,2]
[334769523,1723540238581,-500.0,0.00013698,2]
[334769525,1723540238592,-500.0,0.00013698,2]
[334769527,1723540238601,-500.0,0.00013698,2]
[334769529,1723540238611,-500.0,0.00013698,2]
[334769531,1723540238621,-500.0,0.00013698,2]
[334769533,1723540238631,-500.0,0.00013698,2]
[334769535,1723540238640,-500.0,0.00013698,2]
[334769537,1723540238650,-500.0,0.00013698,2]
[334769539,1723540238659,-500.0,0.00013698,2]
[334769541,1723540238669,-500.0,0.00013698,2]
[334769543,1723540238678,-500.0,0.00013698,2]
[334769544,1723540238688,-625.02312422,0.00013698,2]
[334769546,1723540238697,-500.0,0.00013698,2]
[334769549,1723540238708,-500.0,0.00013698,2]
[334769551,1723540238717,-500.0,0.00013698,2]
[334769552,1723540238727,-500.0,0.00013698,2]
[334769554,1723540238736,-500.0,0.00013698,2]
[334769556,1723540238746,-500.0,0.00013698,2]
[334769558,1723540238755,-500.0,0.00013698,2]
[334769559,1723540238765,-500.0,0.00013698,2]
[334769560,1723540238774,-237.51618695,0.00013698,2]
[334769561,1723540238783,-611.53664137,0.00013698,2]
[334769562,1723540238794,-500.0,0.00013698,2]
[334769563,1723540238804,-500.0,0.00013698,2]
[334769564,1723540238813,-500.0,0.00013698,2]
[334769565,1723540238822,-500.0,0.00013698,2]
[334769566,1723540238832,-558.13731337,0.00013698,2]
[334769567,1723540238842,-505.81458611,0.00013698,2]
[334769568,1723540238851,-500.0,0.00013698,2]
[334769569,1723540238860,-500.0,0.00013698,2]
[334769570,1723540238870,-500.0,0.00013698,2]
[334769571,1723540238879,-1096.64,0.00013698,2]
[334769572,1723540238888,-500.0,0.00013698,2]
[334769573,1723540238898,-1490.47,0.00013698,2]
[334769574,1723540238907,-500.0,0.00013698,2]
[334769575,1723540238916,-500.0,0.00013698,2]
[334769576,1723540238925,-500.0,0.00013698,2]
[334769577,1723540238935,-500.0,0.00013698,2]
[334769578,1723540238944,-500.0,0.00013698,2]
[334769579,1723540238954,-500.0,0.00013698,2]
[334769580,1723540238964,-720.27,0.00013698,2]
[334769581,1723540238974,-500.0,0.00013698,2]
[334769582,1723540238984,-680.99,0.00013698,2]
[334769583,1723540238994,-500.0,0.00013698,2]
[334769584,1723540239003,-500.0,0.00013698,2]
[334769585,1723540239012,-500.0,0.00013698,2]
[334769586,1723540239022,-500.0,0.00013698,2]
[334769587,1723540239031,-500.0,0.00013698,2]
[334769588,1723540239040,-500.0,0.00013698,2]
[334769589,1723540239050,-500.0,0.00013698,2]
[334769590,1723540239059,-500.0,0.00013698,2]
[334769591,1723540239068,-519.97,0.00013698,2]
[334769592,1723540239078,-1008.05,0.00013698,2]
[334769593,1723540239088,-951.1,0.00013698,2]
[334769594,1723540239098,-500.0,0.00013698,2]
[334769595,1723540239107,-500.0,0.00013698,2]
[334769596,1723540239117,-622.64,0.00013698,2]
[334769597,1723540239127,-500.0,0.00013698,2]
[334769598,1723540239136,-500.0,0.00013698,2]
[334769599,1723540239145,-1491.59,0.00013698,2]
[334769600,1723540239154,-500.0,0.00013698,2]
[334769601,1723540239164,-500.0,0.00013698,2]
[334769602,1723540239178,-588.93,0.00013698,2]
[334769603,1723540239188,-500.0,0.00013698,2]
[334769604,1723540239197,-657.34,0.00013698,2]
[334769605,1723540239206,-324.31541479,0.00013698,2]
[334769606,1723540239215,-500.0,0.00013698,2]
[334769607,1723540239225,-500.0,0.00013698,2]
[334769608,1723540239234,-500.0,0.00013698,2]
[334769609,1723540239245,-500.0,0.00013698,2]
[334769610,1723540239254,-500.0,0.00013698,2]
[334769611,1723540239264,-500.0,0.00013698,2]
[334769612,1723540239274,-500.0,0.00013698,2]
[334769613,1723540239285,-652.66,0.00013698,2]
[334769614,1723540239295,-500.0,0.00013698,2]
[334769615,1723540239304,-500.0,0.00013698,2]
[334769616,1723540239314,-583.53,0.00013698,2]
[334769617,1723540239324,-759.05,0.00013698,2]
[334769618,1723540239333,-482.43252552,0.00013698,2]
[334769619,1723540239354,-727.92,0.00013698,2]
[334769620,1723540239363,-500.0,0.00013698,2]
[334769621,1723540239373,-788.16,0.00013698,2]
[334769622,1723540239382,-500.0,0.00013698,2]
[334769623,1723540239392,-500.0,0.00013698,2]
[334769624,1723540239404,-500.0,0.00013698,2]
[334769625,1723540239415,-282.29595842,0.00013698,2]
[334769626,1723540239425,-500.0,0.00013698,2]
[334769627,1723540239435,-500.0,0.00013698,2]
[334769628,1723540239446,-500.0,0.00013698,2]
[334769629,1723540239456,-500.0,0.00013698,2]
[334769630,1723540239466,-1255.29,0.00013698,2]
[334769631,1723540239475,-500.0,0.00013698,2]
[334769632,1723540239485,-500.0,0.00013698,2]
[334769633,1723540239494,-812.25,0.00013698,2]
[334769634,1723540239504,-516.48352692,0.00013698,2]
[334769635,1723540239514,-1187.33,0.00013698,2]
[334769636,1723540239523,-500.0,0.00013698,2]
[334769637,1723540239535,-5832.52,0.00013698,2]
[334769638,1723540239545,-500.0,0.00013698,2]
[334769639,1723540239556,-4063.53,0.00013698,2]
[334769640,1723540239565,-1041.28,0.00013698,2]
[334769641,1723540239574,-1932.86,0.00013698,2]
[334769642,1723540239583,-964.85,0.00013698,2]
[334769643,1723540239593,-500.0,0.00013698,2]
[334769644,1723540239602,-500.0,0.00013698,2]
[334769645,1723540239612,-855.45,0.00013698,2]
[334769646,1723540239621,-500.0,0.00013698,2]
[334769647,1723540239631,-788.29,0.00013698,2]
[334769648,1723540239639,-500.0,0.00013698,2]
[334769649,1723540239649,-500.0,0.00013698,2]
[334769650,1723540239658,-2385.65,0.00013698,2]
[334769651,1723540239667,-1443.58,0.00013698,2]
[334769652,1723540239676,-507.57971785,0.00013698,2]
[334769653,1723540239685,-500.0,0.00013698,2]
[334769654,1723540239695,-500.0,0.00013698,2]
[334769655,1723540239704,-500.0,0.00013698,2]
[334769656,1723540239713,-500.0,0.00013698,2]
[334769657,1723540239723,-1029.15,0.00013698,2]
[334769658,1723540239731,-500.0,0.00013698,2]
[334769659,1723540239741,-500.0,0.00013698,2]
[334769660,1723540239750,-646.54,0.00013698,2]
[334769661,1723540239759,-1199.69,0.00013698,2]
[334769662,1723540239768,-693.08,0.00013698,2]
[334769663,1723540239778,-527.85,0.00013698,2]
[334769664,1723540239787,-500.0,0.00013698,2]
[334769665,1723540239796,-699.03,0.00013698,2]
[334769666,1723540239805,-500.0,0.00013698,2]
[334769667,1723540239814,-500.0,0.00013698,2]
[334769668,1723540239823,-500.0,0.00013698,2]
[334769669,1723540239832,-3338.82,0.00013698,2]
[334769670,1723540239851,-1177.49,0.00013698,2]
[334769671,1723540239860,-1025.29,0.00013698,2]
[334769672,1723540239870,-500.0,0.00013698,2]
[334769673,1723540239879,-1590.96,0.00013698,2]
[334769674,1723540239889,-500.0,0.00013698,2]
[334769675,1723540239898,-500.0,0.00013698,2]
[334769676,1723540239907,-500.0,0.00013698,2]
[334769677,1723540239916,-1255.1,0.00013698,2]
[334769678,1723540239925,-653.22,0.00013698,2]
[334769679,1723540239936,-500.0,0.00013698,2]
[334769680,1723540239945,-500.0,0.00013698,2]
[334769681,1723540239954,-5731.23,0.00013698,2]
[334769682,1723540239964,-497.95581423,0.00013698,2]
[334769683,1723540239973,-500.0,0.00013698,2]
[334769684,1723540239982,-500.0,0.00013698,2]
[334769685,1723540239992,-567.42,0.00013698,2]
[334769686,1723540240002,-500.0,0.00013698,2]
[334769687,1723540240011,-500.0,0.00013698,2]
[334769688,1723540240020,-500.0,0.00013698,2]
[334769689,1723540240029,-500.0,0.00013698,2]
[334769690,1723540240038,-3112.02,0.00013698,2]
[334769691,1723540240047,-1047.77,0.00013698,2]
[334769692,1723540240056,-500.0,0.00013698,2]
[334769693,1723540240065,-500.0,0.00013698,2]
[334769694,1723540240075,-500.0,0.00013698,2]
[334769695,1723540240084,-640.62,0.00013698,2]
[334769696,1723540240096,-969.21,0.00013698,2]
[334769697,1723540240106,-500.0,0.00013698,2]
[334769698,1723540240115,-539.99589051,0.00013698,2]
[334769699,1723540240125,-771.48,0.00013698,2]
[334769700,1723540240134,-871.1,0.00013698,2]
[334769701,1723540240143,-628.78,0.00013698,2]
[334769702,1723540240153,-500.0,0.00013698,2]
[334769703,1723540240162,-500.0,0.00013698,2]
[334769704,1723540240176,-1790.07,0.00013698,2]
[334769705,1723540240188,-500.0,0.00013698,2]
[334769706,1723540240197,-500.0,0.00013698,2]
[334769707,1723540240207,-500.0,0.00013698,2]
[334769708,1723540240216,-500.0,0.00013698,2]
[334769709,1723540240226,-3041.66,0.00013698,2]
[334769710,1723540240235,-500.0,0.00013698,2]
[334769711,1723540240244,-835.43,0.00013698,2]
[334769712,1723540240256,-500.0,0.00013698,2]
[334769713,1723540240265,-500.0,0.00013698,2]
[334769714,1723540240275,-500.0,0.00013698,2]
[334769715,1723540240285,-454.6660517,0.00013698,2]
[334769716,1723540240294,-500.0,0.00013698,2]
[334769717,1723540240303,-3466.14,0.00013698,2]
[334769718,1723540240313,-773.28,0.00013698,2]
[334769719,1723540240323,-710.79,0.00013698,2]
[334769720,1723540240333,-729.38,0.00013698,2]
[334769721,1723540240344,-463.29533031,0.00013698,2]
[334769722,1723540240354,-500.0,0.00013698,2]
[334769723,1723540240364,-726.67,0.00013698,2]
[334769724,1723540240374,-1191.46,0.00013698,2]
[334769725,1723540240386,-898.24,0.00013698,2]
[334769726,1723540240397,-500.0,0.00013698,2]
[334769727,1723540240407,-3000.0,0.00013699,2]
[334769728,1723540240418,-2452.520104,0.00013699,2]
[334769729,1723540240428,-500.0,0.00013699,2]
[334769730,1723540240437,-500.0,0.00013699,2]
[334769731,1723540240448,-500.0,0.00013699,2]
[334769732,1723540240457,-197.41659492,0.00013699,2]
[334769733,1723540240467,-500.0,0.00013699,2]
[334769734,1723540240476,-500.0,0.00013699,2]
[334769735,1723540240485,-500.0,0.00013699,2]
[334769736,1723540240495,-500.0,0.00013699,2]
[334769737,1723540240504,-500.0,0.00013699,2]
[334769738,1723540240513,-346.2519981,0.00013699,2]
[334769739,1723540240522,-244.3,0.00013795,2]
[334769740,1723540240532,-150.0,0.00013795,2]
[334769741,1723540240540,-150.0,0.00013795,2]
[334769742,1723540240550,-508.0,0.00013795,2]
[334769743,1723540240559,-153.0,0.00013851,2]
[334769744,1723540240569,-153.0,0.00013851,2]
[334769745,1723540240578,-153.0,0.00013851,2]
[334769746,1723540240589,-153.0,0.00013851,2]
[334769747,1723540240598,-153.0,0.00013851,2]
[334769748,1723540240607,-153.0,0.00013851,2]
[334769749,1723540240617,-153.0,0.00013851,2]
[334769750,1723540240626,-153.0,0.00013851,2]
[334769751,1723540240635,-153.0,0.00013851,2]
[334769752,1723540240644,-153.0,0.00013851,2]
[334769753,1723540240654,-153.0,0.00013851,2]
[334769754,1723540240664,-153.0,0.00013851,2]
[334769755,1723540240673,-153.0,0.00013851,2]
[334769756,1723540240683,-153.0,0.00013851,2]
[334769757,1723540240692,-153.0,0.00013851,2]
[334769758,1723540240701,-153.0,0.00013851,2]
[334769759,1723540240711,-153.0,0.00013851,2]
[334769760,1723540240722,-153.0,0.00013851,2]
[334769761,1723540240733,-153.0,0.00013851,2]
[334769762,1723540240743,-153.0,0.00013851,2]
[334769763,1723540240753,-153.0,0.00013851,2]
[334769764,1723540240763,-153.0,0.00013851,2]
[334769765,1723540240772,-153.0,0.00013851,2]
[334769766,1723540240781,-153.0,0.00013851,2]
[334769767,1723540240790,-153.0,0.00013851,2]
[334769768,1723540240799,-153.0,0.00013851,2]
[334769769,1723540240809,-153.0,0.00013851,2]